Cogmind - Beta 9.2 @@@ ROGUE MODE // 2019.11.16 @ 17:36:25 Player: Vulpy Result: Destroyed by S-10 Pest with Light Assault Rifle Performance ------------- Evolutions (2) 1000 Regions Visited (5) 1000 Robots Destroyed (40) 200 Value Destroyed (1156) 1156 Prototype IDs (0) 0 Alien Tech Used (0) 0 Bonus (0) 0 TOTAL SCORE: 3356 Bonus ------- None Cogmind --------- Core Integrity 0/550 Matter 256/300 Energy 68/100 System Corruption 5% Temperature Cool (0) Movement Core (50) Location -8/Materials Parts ------- > --- POWER (1) -------- (None) > --- PROPULSION (3) --- (None) > --- UTILITY (4) ------ (None) > --- WEAPON (3) ------- (None) > --- INVENTORY (4) ---- Aluminum Leg Peak State ------------ > --- POWER ------------ Improved Ion Engine > --- PROPULSION ------- Wheel > --- UTILITY ---------- Small Storage Unit Long-range Sensor Array Long-range Sensor Array Light Armor Plating > --- WEAPON ----------- Light Assault Rifle Proton Missile Launcher Proton Missile Launcher > --- INVENTORY -------- Ion Engine Light Ion Engine Light Ion Engine Proton Missile Launcher Proton Missile Launcher [Rating: 23] Favorites ----------- Power Deuterium Engine Engine Deuterium Engine Propulsion Light Treads Treads Light Treads Leg Aluminum Leg Wheel Wheel Utility Small Storage Unit Device Advanced Sensor Array Storage Small Storage Unit Protection Light Armor Plating Weapon Grenade Launcher Energy Gun EM Pulse Gun Energy Cannon EM Pulse Cannon Ballistic Gun Autogun Launcher Grenade Launcher Special Weapon Welding Torch Build | -11 -10 -10 -9 -9 -8 ------- Run | Scr Mat Min Mat Min Mat Slots Evolved 4 | . . . 2 . 2 Power . | . . . . . . Propulsion 1 | . . . 1 . . Utility 2 | . . . 1 . 1 Weapon 1 | . . . . . 1 Parts Attached 45 | . 3 4 7 9 22 Power 5 | . 1 1 . . 3 Engine 5 | . 1 1 . . 3 Core . | . . . . . . Reactor . | . . . . . . Propulsion 18 | . 1 . 3 6 8 Treads 10 | . . . 3 3 4 Leg 3 | . 1 . . 1 1 Wheel 5 | . . . . 2 3 Hover . | . . . . . . Flight . | . . . . . . Utility 6 | . 1 1 1 . 3 Device 4 | . 1 1 . . 2 Storage 1 | . . . 1 . . Processor . | . . . . . . Hackware . | . . . . . . Protection 1 | . . . . . 1 Artifact . | . . . . . . Weapon 16 | . . 2 3 3 8 Energy Gun 2 | . . 1 1 . . Energy Cannon 2 | . . . . 1 1 Ballistic Gun 3 | . . . 1 . 2 Ballistic Cannon . | . . . . . . Launcher 8 | . . 1 1 2 4 Special Weapon 1 | . . . . . 1 Impact Weapon . | . . . . . . Slashing Weapon . | . . . . . . Piercing Weapon . | . . . . . . Special Melee Weapon . | . . . . . . Unidentified Prototypes . | . . . . . . Parts Lost 36 | . . . 2 9 25 Power 3 | . . . . . 3 Propulsion 13 | . . . . 4 9 Utility 5 | . . . . 1 4 Weapon 15 | . . . 2 4 9 Highest Loss Streak 15 | . . . 1 9 15 Average Slot Usage (%) 86 | . 86 100 92 95 63 Engine 10 | . 14 14 11 11 7 Treads 15 | . . . 24 29 7 Leg 10 | . 28 28 7 1 5 Wheel 1 | . . . . 1 4 Device 8 | . 1 14 11 9 4 Storage 16 | . 14 14 16 22 13 Energy Gun 8 | . 28 28 9 . . Ballistic Gun 4 | . . . 2 8 5 Launcher 7 | . . . 9 10 9 Naked Turns 10 | . . . . . 10 Heaviest Build 33 | 10 13 17 24 24 33 Greatest Support 60 | 20 20 20 60 60 60 Greatest Overweight (x) 3 | . . . . 1 3 Average Overweight (x) . | . . . . . 1 Largest Inventory Capacity 8 | 6 6 6 8 8 8 Average Capacity 7 | 6 6 6 7 8 6 Most Carried 8 | 6 6 6 8 8 8 Average Carried 6 | 6 5 6 6 7 5 Final Capacity 8 | 6 6 6 8 8 4 Final Carried 8 | 6 6 6 8 7 1 Class Distribution -------------------- 85% | Mutant 14% | Scavenger-Mutant Dominant Class ---------------- Mutant | -10/Materials Mutant | -10/Mines Mutant | -9/Materials Mutant | -9/Mines Scavenger-Mutant | -8/Materials Resources | -11 -10 -10 -9 -9 -8 ----------- Run | Scr Mat Min Mat Min Mat Matter Collected 836 | 191 39 70 225 43 268 Remotely . | . . . . . . Salvage Created 1174 | . 92 21 348 132 581 Parts 51 | . 4 2 20 8 17 Haulers Intercepted . | . . . . . . Recyclers Shooed 1 | . . . 1 . . Parts Field Recycled . | . . . . . . Retrieved Matter . | . . . . . . Parts Self-Destructed . | . . . . . . Prevented . | . . . . . . Kills | -11 -10 -10 -9 -9 -8 ------- Run | Scr Mat Min Mat Min Mat Combat Hostiles Destroyed 35 | . 2 1 14 8 10 Guns 7 | . 2 . 3 . 2 Cannons 3 | . . . . 2 1 AOE 25 | . . 1 11 6 7 Classes Destroyed 9 | . 1 . 5 1 2 Worker 1 | . . . . . 1 Builder 2 | . . . 1 1 . Recycler 1 | . . . 1 . . Watcher 1 | . . . 1 . . Swarmer 10 | . . . 5 2 3 Grunt 18 | . 2 1 8 3 4 Brawler 3 | . . . . . 3 Sentry 1 | . . . 1 . . Assembled 3 | . . . . 3 . Best Kill Streak 5 | . 1 1 4 5 4 Combat Bots Only 5 | . 1 1 4 5 4 Max Kills in Single Turn 3 | . 1 1 3 2 2 Gunslinging . | . . . . . . Exploded 3 | . . 1 3 2 2 Melee . | . . . . . . Uniques/NPCs Destroyed . | . . . . . . Combat | -11 -10 -10 -9 -9 -8 -------- Run | Scr Mat Min Mat Min Mat Damage Taken 3390 | . 111 22 490 741 2026 Core 708 | . 33 . 46 79 550 Absorbed by Shields . | . . . . . . Core Remaining (%) 84 | 100 . 86 . 68 . Volleys Fired 106 | . 12 3 34 12 45 Largest 2 | . 2 1 1 1 2 Hottest 83 | . 80 30 40 68 83 Shots Fired 129 | . 24 3 34 12 56 Gun 72 | . 24 . 17 . 31 Cannon 13 | . . . . 5 8 Launcher 40 | . . 3 17 7 13 Special 4 | . . . . . 4 Kinetic 44 | . . . 13 . 31 Thermal 23 | . 12 . 2 5 4 Explosive 27 | . . 3 17 7 . Electromagnetic 35 | . 12 . 2 . 21 Robot Hit Streak 14 | . 3 4 13 6 14 Robot Miss Streak 3 | . 2 . 2 2 3 Penetration Max . | . . . . . . Secondary Targets . | . . . . . . Shots Hit Robots 91 | . 13 3 26 9 40 Core Hits 77 | . 4 2 35 12 24 Critical Hits 1 | . . . . . 1 Critical Kills . | . . . . . . Critical Parts Destroyed 1 | . . . . . 1 Melee Attacks . | . . . . . . Impact . | . . . . . . Slashing . | . . . . . . Piercing . | . . . . . . Sneak Attacks . | . . . . . . Combat Hostiles . | . . . . . . Follow-up Attacks . | . . . . . . Damage Inflicted 3303 | . 148 100 1467 631 957 Guns 507 | . 148 . 167 . 192 Cannons 212 | . . . . 83 129 Explosions 2567 | . . 93 1300 548 626 Melee . | . . . . . . Ramming 13 | . . 7 . . 6 Kinetic 334 | . . . 142 . 192 Thermal 312 | . 44 . 81 83 104 Explosive 1860 | . . 93 1219 548 . Electromagnetic 784 | . 104 . 25 . 655 Impact . | . . . . . . Slashing . | . . . . . . Piercing . | . . . . . . Highest Corruption 5 | . . . . . 5 Average Corruption 4 | . . . . . 4 Corruption Purged . | . . . . . . Effects 7 | . . . . . 7 Message Errors 1 | . . . . . 1 Energy Discharges 2 | . . . . . 2 Targeting Errors 3 | . . . . . 3 Weapon Failures 1 | . . . . . 1 Overload Shots . | . . . . . . Overflow Damage 252 | . . . 167 8 77 Projectiles 1 | . . . . . 1 Explosions 251 | . . . 167 8 76 Melee . | . . . . . . Knockbacks . | . . . . . . Impact . | . . . . . . Kinetic . | . . . . . . Secondary . | . . . . . . Self-Inflicted Damage 302 | . . . 66 73 163 Shots 16 | . . . 3 4 9 Rammed 4 | . . . . . 4 Targets Rammed 5 | . . 1 . . 4 Kicked 1 | . . 1 . . . Crushed . | . . . . . . Highest Temperature 162 | . 162 2 12 126 44 Average Temperature 38 | . 69 2 4 64 12 Received Heat Transfer 963 | . 60 12 180 99 612 Siege Activations . | . . . . . . Robots Corrupted . | . . . . . . Combat Hostiles . | . . . . . . Parts Fried . | . . . . . . Impact Corruptions . | . . . . . . Robots Melted . | . . . . . . Combat Hostiles . | . . . . . . Parts Melted 1 | . 1 . . . . Heat Transferred 573 | . 100 . 150 148 175 Parts Sabotaged . | . . . . . . Parts Stolen . | . . . . . . Parts Stripped . | . . . . . . Power Chain Reactions 4 | . . . 2 . 2 Missiles Intercepted . | . . . . . . Alert | -11 -10 -10 -9 -9 -8 ------- Run | Scr Mat Min Mat Min Mat Peak Influence 396 | . 80 51 396 209 343 Average Influence 132 | . 38 35 206 158 133 Maximum Alert Level 1 | . . . 1 1 1 Low Security (%) 75 | 100 100 100 54 87 56 Level 1 24 | . . . 45 12 43 Level 2 . | . . . . . . Level 3 . | . . . . . . Level 4 . | . . . . . . Level 5 . | . . . . . . High Security . | . . . . . . Max Security . | . . . . . . Squads Dispatched 8 | . 3 1 2 . 2 Investigation 3 | . . 1 2 . . Extermination . | . . . . . . Reinforcement 4 | . 3 . . . 1 Assault 1 | . . . . . 1 Garrison . | . . . . . . Intercept . | . . . . . . Construction Impeded 1 | . . . . . 1 Haulers Reinforced . | . . . . . . Stealth | -11 -10 -10 -9 -9 -8 --------- Run | Scr Mat Min Mat Min Mat Distress Signals 5 | . . . 2 . 3 Communications Jammed . | . . . . . . Distress Signals . | . . . . . . Times Spotted 75 | . 5 5 23 12 30 Peak Tracking Total 11 | . 3 2 10 11 9 Tactical Retreats 10 | . . . 2 2 6 Traps | -11 -10 -10 -9 -9 -8 ------- Run | Scr Mat Min Mat Min Mat Traps Triggered 3 | . . . 2 . 1 Indirectly 1 | . . . . . 1 Trap Hack Attempts . | . . . . . . Triggered . | . . . . . . Disarmed . | . . . . . . Reprogrammed . | . . . . . . Reused . | . . . . . . Traps Extracted . | . . . . . . Installed . | . . . . . . Triggered . | . . . . . . Machines | -11 -10 -10 -9 -9 -8 ---------- Run | Scr Mat Min Mat Min Mat Machines Disabled 9 | . 1 . 2 2 4 Max in Single Turn 2 | . 1 . 1 2 2 Garrison Access 1 | . . . . . 1 Machines Sabotaged . | . . . . . . Garrisons Compromised . | . . . . . . Overloaded Fab Kills . | . . . . . . Fab Network Shutdowns . | . . . . . . Hacking | -11 -10 -10 -9 -9 -8 --------- Run | Scr Mat Min Mat Min Mat Machines Accessed 3 | . . 1 1 . 1 Terminals 2 | . . . 1 . 1 Fabricators . | . . . . . . Repair Stations . | . . . . . . Recycling Units . | . . . . . . Scanalyzers . | . . . . . . Garrison Access . | . . . . . . Total Hacks 7 | . . 1 4 . 2 Successful 6 | . . 1 3 . 2 Failed 1 | . . . 1 . . Catastrophic . | . . . . . . Database Lockouts . | . . . . . . Manual 2 | . . . . . 2 Terminals 6 | . . . 4 . 2 Fabricators . | . . . . . . Repair Stations . | . . . . . . Recycling Units . | . . . . . . Scanalyzers . | . . . . . . Garrison Access . | . . . . . . Terminal Hacks 6 | . . 1 3 . 2 Record 1 | . . . 1 . . Robot Analysis 1 | . . . . . 1 Open Door 1 | . . 1 . . . Transport Status 1 | . . . 1 . . Hauler Manifests 1 | . . . 1 . . Zone Layout 1 | . . . . . 1 Fabricator Hacks . | . . . . . . Repair Station Hacks . | . . . . . . Recycling Unit Hacks . | . . . . . . Scanalyzer . | . . . . . . Garrison Access Hacks . | . . . . . . Unauthorized Hacks . | . . . . . . Terminals . | . . . . . . Fabricators . | . . . . . . Repair Stations . | . . . . . . Recycling Units . | . . . . . . Scanalyzers . | . . . . . . Garrison Access . | . . . . . . Data Cores Recovered . | . . . . . . Used . | . . . . . . Hacking Detections 1 | . . . . . 1 Full Trace Events 1 | . . . . . 1 Feedback Events . | . . . . . . Feedback Blocked . | . . . . . . Robot Schematics Acquired . | . . . . . . Robots Built . | . . . . . . Matter . | . . . . . . Time . | . . . . . . Total Robot Build Rating . | . . . . . . Part Schematics Acquired . | . . . . . . Parts Built . | . . . . . . Matter . | . . . . . . Time . | . . . . . . Total Part Build Rating . | . . . . . . Parts Repaired . | . . . . . . Time . | . . . . . . Parts Recycled . | . . . . . . Recycled Matter . | . . . . . . Retrieved Matter . | . . . . . . Retrieved Components . | . . . . . . Parts Scanalyzed . | . . . . . . Part Schematics Acquired . | . . . . . . Parts Damaged . | . . . . . . Bothacking | -11 -10 -10 -9 -9 -8 ------------ Run | Scr Mat Min Mat Min Mat Used RIF Installer . | . . . . . . Robots Hacked . | . . . . . . Non-combat . | . . . . . . Combat . | . . . . . . Robot Hacks Applied . | . . . . . . Relay Couplers Released 2 | . . . . . 2 Machine Destruction 2 | . . . . . 2 Robots Rewired . | . . . . . . Allies Hacked . | . . . . . . Hacks Repelled . | . . . . . . Allies | -11 -10 -10 -9 -9 -8 -------- Run | Scr Mat Min Mat Min Mat Total Allies . | . . . . . . Largest Group . | . . . . . . Highest-Rated Group . | . . . . . . Highest-Rated Ally . | . . . . . . Total Orders . | . . . . . . Ally Attacks . | . . . . . . Total Damage . | . . . . . . Kills . | . . . . . . Allies Corrupted . | . . . . . . Allies Melted . | . . . . . . Intel | -11 -10 -10 -9 -9 -8 ------- Run | Scr Mat Min Mat Min Mat Robot Analysis Total 1 | . . . . . 1 Derelict Logs Recovered 2 | . . 1 . 1 . Drone Launches . | . . . . . . Drone Recoveries . | . . . . . . Exploration | -11 -10 -10 -9 -9 -8 ------------- Run | Scr Mat Min Mat Min Mat Turns Passed 1411 | 3 144 200 299 410 355 Spaces Moved 778 | 3 80 146 152 239 158 Core 17 | . . . . . 17 Treads 365 | . . . 88 219 58 Legs 298 | 3 80 146 64 . 5 Wheels 98 | . . . . 20 78 Hover . | . . . . . . Flight . | . . . . . . Fastest Speed 50 | 120 120 120 120 90 50 Average Speed 134 | 120 120 120 143 154 118 Slowest Speed 180 | 120 120 120 160 160 180 Overloaded Moves . | . . . . . . Propulsion Burnouts . | . . . . . . Robots Hopped . | . . . . . . Cave-ins Triggered . | . . . . . . Exploration Rate (%) 24 | 1 11 48 19 49 20 Regions Visited 5 Branch Regions 2 Pre-discovered Areas 1 | . . 1 . . . Known Exits Taken . | . . . . . . Unknown Exits Taken 5 | 1 1 1 1 1 . Scrap Searched 2 | . . 1 . 1 . Spaces Dug . | . . . . . . Terrain Destroyed 171 | . . 8 78 76 9 Melee . | . . . . . . Projectile . | . . . . . . AOE 171 | . . 8 78 76 9 Actions | -11 -10 -10 -9 -9 -8 --------- Run | Scr Mat Min Mat Min Mat Total 1008 | 2 104 167 202 268 265 Wait 45 | . 5 12 . 3 25 Move 773 | 2 79 145 151 238 158 Hop . | . . . . . . Pick Up 22 | . 2 . 7 6 7 Fast Attach 13 | . 2 1 2 . 8 Attach 23 | . . . 4 7 12 Detach 1 | . . . . . 1 Swap 9 | . 1 3 1 2 2 Drop 11 | . 3 2 3 . 3 Fire 106 | . 12 3 34 12 45 Melee . | . . . . . . Ram 1 | . . . . . 1 Kick 4 | . . 1 . . 3 Crush . | . . . . . . Escape Stasis . | . . . . . . Rewire . | . . . . . . Trap . | . . . . . . Miscellaneous . | . . . . . . Route ------- -11/Scrapyard -10/Materials -10/Mines (discovered 2 exits: *Mat x2) -9/Materials -9/Mines -8/Materials (discovered 1 exit: [*Sto]) History --------- Turn | Location | Event 1 | -11/Scrapyard | Discovered new exit (range 3) 4 | -11/Scrapyard | Entered Materials 4 | -10/Materials | Discovered new exit (range 14) 130 | -10/Materials | Met 8R-AWN 148 | -10/Materials | Entered Mines 149 | -10/Mines | Followed 8R-AWN into the Mines 183 | -10/Mines | Discovered new exit (range 5) 220 | -10/Mines | Met a Derelict bent on vengeance 234 | -10/Mines | Learned location of Zion (-7) 272 | -10/Mines | Met a Derelict shopkeep closing up shop 329 | -10/Mines | Build established: Mutant 342 | -10/Mines | Discovered new exit (range 6) 348 | -10/Mines | Entered Materials 348 | -9/Materials | Evolved 2 slots: Propulsion x1, Utility x1 631 | -9/Materials | Discovered new exit (range 7) 647 | -9/Materials | Entered Mines 675 | -9/Mines | Learned Materials interactive machine intel 906 | -9/Mines | Assembled infested the area 911 | -9/Mines | Assisted by a Guerilla fighting off Assembled 1025 | -9/Mines | Lost 9 parts (4n1u4w) 1046 | -9/Mines | Discovered new exit (range 8) 1057 | -9/Mines | Entered Materials 1057 | -8/Materials | Evolved 2 slots: Utility x1, Weapon x1 1058 | -8/Materials | Loaded intel: 19 interactive machine locations 1195 | -8/Materials | Lost 7 parts (1p3n3w) 1280 | -8/Materials | Lost 3 parts (1n1u1w) 1395 | -8/Materials | Core integrity fell below 50% 1406 | -8/Materials | Discovered new exit (range 16) 1410 | -8/Materials | Core integrity fell below 20% 1412 | -8/Materials | Destroyed by S-10 Pest with Light Assault Rifle Last Messages --------------- 01395_ U-05 Engineer lays Concrete. 01398_ Slug penetrates Wall. 01398_ Wheel destroyed. 01399_ U-05 Engineer builds a Wall. 01400_ System corrupted: Energy discharge (-17). 01401_ Penetrated by Slug. 01401_ Dropped Lgt. Ion Engine. 01401_ K-01 Serf cleans the Matter Pump. 01402_ Dropped Lrn. Sensor Array. 01402_ Slug penetrates Wall. 01402_ Wheel destroyed. 01402_ Dropped Ion Engine. 01405_ K-01 Serf cleans the Matter Pump. 01406_ EXIT=FOUND 01407_ Penetrated by Slug. 01408_ K-01 Serf cleans the Matter Pump. 01410_ Penetrated by Slug. 01410_ S-10 Pest destroyed. 01410_ Slug penetrates Y-45 Defender. 01411_ Slammed into K-01 Serf. Map ----- +----------------------------------------------------+ | # # "%%%%%%##### ???????????????????????? | | ########## % % #???##???????????????????????? | | ?????????# %% % #????????????????????????????? | | ?????????# % * #????????????????????????????? | | ?????????# #????????????????????????????? | | ??######## != % ################# ??????????? | | ??# # |% ! ! ^ ?????????? | | ??# " [ # ##* ! ] ?????????? | | ??# " ## ##* ?T???????? | | ??# "% "# ! ||## G! """ """???????????? | | ??#! " # "# ! |## "" """ ?"?????????????? | | ### # ########## ^ """ ""????????????? | | # ######## ########## ??????????? | | # # #!= ## ??????????? | | ?????????# #! ??# """ """ """???????????? | | ?????????/ # ?## """ """ ""????????????? | | ?????????# # # h"""% """ """???????????? | | ?????????# # # k ???????????? | | ?????????# # + ??????????? | | ?????????# # # ???????????? | | ?????????# # ! # ###+######????????????? | | ?????????? # ?## ##?????????????????????? | | ?????????? # ??# #??????????????????????? | | ?????????????# ???# k#??????????????????????? | | ?????????????##### ???# #??????????????????????? | | ?????????????????#????#ws@#??????????????????????? | | ??????????????????????# k #??????????????????????? | | ??????????????????????#s% #??????????????????????? | | ?????????????????????# ??????????????????????? | | ???????????????????? [ Ya ??????????????????????? | | ???????????????????a < #?????????????????????? | | ?????????????????? #?????????????????????? | | ?????????????????##### ] #?????????????????????? | | ?????????????????????##s ##?????????????????????? | | ??????????????????????# #??????????????????????? | | ??????????????????????# #??????????????????????? | | ??????????????????????# #?????????????????""???? | | ??????????????????????# ??????????????????"T???? | | ?????????????????????? ??????????????????""???? | | ??????????????????????# ??????????????????""???? | | ??????????????????????? ???????????????????????? | | ?????????????????????????????????????????????????? | | ?????????????????????????????????????????????????? | | ?????????????????????????????????????????????????? | | ?????????????????????????????????????????????????? | | ?????????????????????????????????????????????????? | | ?????????????????????????????????????????????????? | | ?????????????????????????????????????????????????? | | ?????????????????????????????????????????????????? | | ?????????????????????????????????????????????????? | +----------------------------------------------------+ Best States ------------- Heat Dissipation 35 Energy Generation 14 Energy Capacity 275 Matter Stores 300 Matter Capacity 300 Sight Range 16 Robot Scan Range 20 Terrain Scan Density 10 Armor Coverage 150 Evasion (%) 50 Recoil Reduction 3 Item Schematics ----------------- None Robot Schematics ------------------ None Fabricated ------------ Nothing Alien Tech Used ----------------- None Achievements -------------- None Challenges ------------ None Game ------ Seed GaussTrackerBeamcaster Manual? 0 Play Time 00:51:19 Cumulative 30.0 hours Start 2019.11.16 @ 16:41:31 End 2019.11.16 @ 17:36:25 Sessions 1 Manual Loads 0 Difficulty Rogue Special Mode None Game No. 31 Rogue 29 Adventurer 2 Explorer 0 Win Type - Total 0 Types 0/0/0/0/0/0/0 Lore% 13 Gallery% 29 Achievement% 20 Wizard Run 0 Options --------- ASCII 0 Keyboard 1 Movement Numpad Keybinds 0 Fullscreen 2 Font 20/Terminus Map View 66x50 Tactical HUD 1 Map Filters NONE Filters NONE Steam 1 RUN: 374c71a3-3568-43e7-8af4-ad87afbc5fc7